[Event "Early-Titled-Tuesday-Blitz-November-28-2023"]
[Site "Chess.com"]
[Date "2023.11.28"]
[Round "5"]
[White "Olya_Oblachko"]
[Black "Zainullina_Nataliya"]
[Result "1/2-1/2"]
[WhiteElo "2250"]
[BlackElo "2121"]
[TimeControl "180+1"]
[EndTime "8:58:31 PST"]
[Termination "Game drawn by repetition"]

1. d4 {[%clk 0:03:00.9]} 1... Nf6 {[%clk 0:02:59.3]} 2. c4 {[%clk 0:02:58]} 2...
e6 {[%clk 0:02:58.2]} 3. g3 {[%clk 0:02:56.5]} 3... d5 {[%clk 0:02:57.8]} 4. Nf3
{[%clk 0:02:55.8]} 4... Bb4+ {[%clk 0:02:56.9]} 5. Bd2 {[%clk 0:02:55.2]} 5...
Be7 {[%clk 0:02:56.1]} 6. Bg2 {[%clk 0:02:54.9]} 6... O-O {[%clk 0:02:55.9]} 7.
O-O {[%clk 0:02:54.8]} 7... b6 {[%clk 0:02:55]} 8. cxd5 {[%clk 0:02:46.8]} 8...
exd5 {[%clk 0:02:53]} 9. Nc3 {[%clk 0:02:45.3]} 9... Bb7 {[%clk 0:02:50.4]} 10.
Bf4 {[%clk 0:02:42.9]} 10... c5 {[%clk 0:02:46.9]} 11. Rc1 {[%clk 0:02:35.9]}
11... Na6 {[%clk 0:02:40.4]} 12. Be5 {[%clk 0:02:11.9]} 12... Ne4 {[%clk
0:02:25.7]} 13. dxc5 {[%clk 0:02:04.4]} 13... Naxc5 {[%clk 0:02:22.1]} 14. Qd4
{[%clk 0:01:38.3]} 14... Ne6 {[%clk 0:01:38.3]} 15. Qd3 {[%clk 0:01:24.5]} 15...
f6 {[%clk 0:01:30.8]} 16. Bd4 {[%clk 0:01:23.7]} 16... Nxd4 {[%clk 0:01:29.3]}
17. Nxd4 {[%clk 0:01:22.5]} 17... Bc5 {[%clk 0:01:09.7]} 18. e3 {[%clk
0:01:13.5]} 18... Re8 {[%clk 0:01:06.3]} 19. Nce2 {[%clk 0:00:54]} 19... Rc8
{[%clk 0:01:01.2]} 20. Nf4 {[%clk 0:00:50.1]} 20... Qd6 {[%clk 0:00:46.2]} 21.
a3 {[%clk 0:00:47.7]} 21... a5 {[%clk 0:00:41.5]} 22. Rfd1 {[%clk 0:00:39.2]}
22... Qe5 {[%clk 0:00:36.8]} 23. Rb1 {[%clk 0:00:28.2]} 23... Bxd4 {[%clk
0:00:19.9]} 24. exd4 {[%clk 0:00:25.2]} 24... Qd6 {[%clk 0:00:17.4]} 25. Rbc1
{[%clk 0:00:24.7]} 25... Rxc1 {[%clk 0:00:16.9]} 26. Rxc1 {[%clk 0:00:24.5]}
26... Qd7 {[%clk 0:00:12.7]} 27. Qc2 {[%clk 0:00:16.6]} 27... Rc8 {[%clk
0:00:12.2]} 28. Qd1 {[%clk 0:00:16]} 28... Rxc1 {[%clk 0:00:12.1]} 29. Qxc1
{[%clk 0:00:16.9]} 29... Qc6 {[%clk 0:00:11.5]} 30. Qxc6 {[%clk 0:00:15.4]}
30... Bxc6 {[%clk 0:00:11.6]} 31. Kf1 {[%clk 0:00:11.2]} 31... Kf7 {[%clk
0:00:11.4]} 32. Ke2 {[%clk 0:00:10.9]} 32... g5 {[%clk 0:00:11.3]} 33. Nd3
{[%clk 0:00:08.7]} 33... Ke6 {[%clk 0:00:11.3]} 34. Ke3 {[%clk 0:00:07.9]} 34...
Nd6 {[%clk 0:00:10.9]} 35. b3 {[%clk 0:00:07]} 35... Bb5 {[%clk 0:00:10.5]} 36.
g4 {[%clk 0:00:03.3]} 36... Bxd3 {[%clk 0:00:10.5]} 37. Kxd3 {[%clk 0:00:04.2]}
37... Nb5 {[%clk 0:00:10.7]} 38. a4 {[%clk 0:00:03.8]} 38... Nd6 {[%clk
0:00:11]} 39. Bf3 {[%clk 0:00:03.1]} 39... h6 {[%clk 0:00:11]} 40. h3 {[%clk
0:00:02.6]} 40... f5 {[%clk 0:00:11]} 41. gxf5+ {[%clk 0:00:02]} 41... Nxf5
{[%clk 0:00:10.8]} 42. Bg4 {[%clk 0:00:02.9]} 42... Kf6 {[%clk 0:00:10.6]} 43.
f3 {[%clk 0:00:01.6]} 43... Nd6 {[%clk 0:00:10.3]} 44. Ke3 {[%clk 0:00:01.5]}
44... Nf5+ {[%clk 0:00:09.8]} 45. Kd3 {[%clk 0:00:01.4]} 45... Nd6 {[%clk
0:00:09.8]} 46. Ke3 {[%clk 0:00:01.7]} 46... Nf5+ {[%clk 0:00:10.1]} 47. Kd3
{[%clk 0:00:02.3]} 1/2-1/2

[Event "Early-Titled-Tuesday-Blitz-November-28-2023"]
[Site "Chess.com"]
[Date "2023.11.28"]
[Round "5"]
[White "KorolDimitriy75"]
[Black "PattyCastillo"]
[Result "0-1"]
[WhiteElo "2323"]
[BlackElo "2038"]
[TimeControl "180+1"]
[EndTime "8:58:32 PST"]
[Termination "PattyCastillo won on time"]

1. d4 {[%clk 0:03:00.9]} 1... d5 {[%clk 0:02:59.1]} 2. c4 {[%clk 0:03:01.2]}
2... c6 {[%clk 0:02:58.9]} 3. Nc3 {[%clk 0:03:01.8]} 3... Nf6 {[%clk 0:02:57]}
4. e3 {[%clk 0:03:02]} 4... e6 {[%clk 0:02:57]} 5. Nf3 {[%clk 0:03:01.4]} 5...
Nbd7 {[%clk 0:02:57.1]} 6. Bd3 {[%clk 0:03:01.1]} 6... dxc4 {[%clk 0:02:56.9]}
7. Bxc4 {[%clk 0:03:02]} 7... b5 {[%clk 0:02:57.5]} 8. Be2 {[%clk 0:03:01.8]}
8... Bb7 {[%clk 0:02:57.4]} 9. e4 {[%clk 0:03:02.1]} 9... b4 {[%clk 0:02:55.9]}
10. e5 {[%clk 0:03:02.4]} 10... bxc3 {[%clk 0:02:50.5]} 11. exf6 {[%clk
0:03:02.5]} 11... Nxf6 {[%clk 0:02:49.5]} 12. bxc3 {[%clk 0:03:01.8]} 12... Be7
{[%clk 0:02:45.7]} 13. Rb1 {[%clk 0:02:58.4]} 13... Rb8 {[%clk 0:02:35]} 14. Qa4
{[%clk 0:02:24]} 14... Ba8 {[%clk 0:02:14.3]} 15. Rb3 {[%clk 0:01:54.3]} 15...
Rxb3 {[%clk 0:02:02.6]} 16. axb3 {[%clk 0:01:50.9]} 16... Qb6 {[%clk 0:01:56.6]}
17. O-O {[%clk 0:01:30.9]} 17... O-O {[%clk 0:01:56.1]} 18. b4 {[%clk
0:01:20.2]} 18... Nd5 {[%clk 0:01:51.2]} 19. Bd2 {[%clk 0:00:40.5]} 19... Qb7
{[%clk 0:01:13.1]} 20. Ra1 {[%clk 0:00:37.8]} 20... Bd6 {[%clk 0:00:45.8]} 21.
Qxa7 {[%clk 0:00:33.8]} 21... Nf4 {[%clk 0:00:42.4]} 22. Bf1 {[%clk 0:00:20.5]}
22... h6 {[%clk 0:00:41.6]} 23. Qxb7 {[%clk 0:00:17.1]} 23... Bxb7 {[%clk
0:00:41.3]} 24. Ra7 {[%clk 0:00:16.1]} 24... Ba8 {[%clk 0:00:29.7]} 25. g3
{[%clk 0:00:14.4]} 25... Nd5 {[%clk 0:00:26.7]} 26. Bg2 {[%clk 0:00:14.2]} 26...
Bb8 {[%clk 0:00:23.7]} 27. Ra6 {[%clk 0:00:13.4]} 27... Bc7 {[%clk 0:00:20.4]}
28. Ra7 {[%clk 0:00:12.9]} 28... Bb6 {[%clk 0:00:19.8]} 29. Ra2 {[%clk
0:00:12.2]} 29... Rc8 {[%clk 0:00:18.6]} 30. Ne5 {[%clk 0:00:11.7]} 30... Bc7
{[%clk 0:00:16.1]} 31. Nd7 {[%clk 0:00:10.9]} 31... f6 {[%clk 0:00:12.6]} 32. h4
{[%clk 0:00:09.8]} 32... Kf7 {[%clk 0:00:12.2]} 33. Nc5 {[%clk 0:00:10.1]} 33...
Bd6 {[%clk 0:00:10.7]} 34. Bh3 {[%clk 0:00:10.1]} 34... f5 {[%clk 0:00:09.5]}
35. Ra6 {[%clk 0:00:07.5]} 35... Bxc5 {[%clk 0:00:08.3]} 36. dxc5 {[%clk
0:00:06.3]} 36... Nf6 {[%clk 0:00:07.8]} 37. Bg2 {[%clk 0:00:05.8]} 37... Bb7
{[%clk 0:00:07.3]} 38. Ra7 {[%clk 0:00:05.4]} 38... Rc7 {[%clk 0:00:07.1]} 39.
Bf4 {[%clk 0:00:05.6]} 39... Rd7 {[%clk 0:00:07.5]} 40. Bd6 {[%clk 0:00:04.6]}
40... Nd5 {[%clk 0:00:07.1]} 41. Be5 {[%clk 0:00:02.4]} 41... g5 {[%clk
0:00:06.1]} 42. hxg5 {[%clk 0:00:01.9]} 42... hxg5 {[%clk 0:00:06.1]} 43. Bf3
{[%clk 0:00:01.9]} 43... Ke8 {[%clk 0:00:02]} 0-1

[Event "Early-Titled-Tuesday-Blitz-November-28-2023"]
[Site "Chess.com"]
[Date "2023.11.28"]
[Round "5"]
[White "Barmen_EV"]
[Black "tacticthunder"]
[Result "0-1"]
[WhiteElo "2509"]
[BlackElo "2793"]
[TimeControl "180+1"]
[EndTime "8:58:33 PST"]
[Termination "tacticthunder won by checkmate"]

1. e4 {[%clk 0:03:00.9]} 1... c5 {[%clk 0:02:57.3]} 2. c3 {[%clk 0:03:01.1]}
2... Nf6 {[%clk 0:02:56.9]} 3. e5 {[%clk 0:03:01.7]} 3... Nd5 {[%clk 0:02:57.6]}
4. d4 {[%clk 0:03:02.6]} 4... cxd4 {[%clk 0:02:57.9]} 5. Nf3 {[%clk 0:03:03.2]}
5... Nc6 {[%clk 0:02:58.5]} 6. cxd4 {[%clk 0:03:02.1]} 6... Nb6 {[%clk 0:02:59]}
7. d5 {[%clk 0:02:59.2]} 7... Nb8 {[%clk 0:02:58.1]} 8. Nc3 {[%clk 0:02:58.5]}
8... d6 {[%clk 0:02:58.2]} 9. e6 {[%clk 0:02:56.6]} 9... fxe6 {[%clk 0:02:56.1]}
10. dxe6 {[%clk 0:02:57.5]} 10... Bxe6 {[%clk 0:02:55.5]} 11. Bd3 {[%clk
0:02:52.2]} 11... g6 {[%clk 0:02:50.9]} 12. Ng5 {[%clk 0:02:46.4]} 12... Qd7
{[%clk 0:02:44.1]} 13. O-O {[%clk 0:02:29.4]} 13... Bf5 {[%clk 0:02:36.9]} 14.
Re1 {[%clk 0:02:17.3]} 14... Nc6 {[%clk 0:02:27.7]} 15. Bxf5 {[%clk 0:02:13.8]}
15... Qxf5 {[%clk 0:02:28.6]} 16. Ne6 {[%clk 0:02:14]} 16... Rc8 {[%clk
0:02:26.5]} 17. a4 {[%clk 0:01:51.6]} 17... Ne5 {[%clk 0:02:23.3]} 18. Nd4
{[%clk 0:01:42.6]} 18... Qd3 {[%clk 0:02:22.6]} 19. Qb3 {[%clk 0:01:42.7]} 19...
Qxd4 {[%clk 0:02:17]} 20. a5 {[%clk 0:01:37.1]} 20... Qc4 {[%clk 0:02:08]} 21.
Qd1 {[%clk 0:01:02.4]} 21... Nbd7 {[%clk 0:02:01.8]} 22. f4 {[%clk 0:01:02.7]}
22... Nd3 {[%clk 0:01:40.1]} 23. Re4 {[%clk 0:00:56.6]} 23... Qc5+ {[%clk
0:01:33.7]} 24. Be3 {[%clk 0:00:56.2]} 24... Nxb2 {[%clk 0:01:34.3]} 25. Qe2
{[%clk 0:00:25]} 25... Qxc3 {[%clk 0:01:30.5]} 26. Bd4 {[%clk 0:00:25.2]} 26...
Qd3 {[%clk 0:01:23.7]} 27. Bxh8 {[%clk 0:00:20.7]} 27... Qxe2 {[%clk 0:01:22.8]}
28. Rxe2 {[%clk 0:00:21]} 28... Nd3 {[%clk 0:01:23.4]} 29. g3 {[%clk 0:00:17.2]}
29... Kf7 {[%clk 0:01:23.4]} 30. Bd4 {[%clk 0:00:16.9]} 30... N3c5 {[%clk
0:01:19.3]} 31. Rd1 {[%clk 0:00:15.6]} 31... e6 {[%clk 0:01:18.2]} 32. g4 {[%clk
0:00:15.8]} 32... d5 {[%clk 0:01:17.3]} 33. Bf2 {[%clk 0:00:11.8]} 33... Nf6
{[%clk 0:01:13.7]} 34. f5 {[%clk 0:00:11.3]} 34... exf5 {[%clk 0:01:11.6]} 35.
gxf5 {[%clk 0:00:12.2]} 35... gxf5 {[%clk 0:01:11.9]} 36. Rc2 {[%clk 0:00:12.5]}
36... Nfe4 {[%clk 0:01:11.6]} 37. Rxd5 {[%clk 0:00:11.3]} 37... Ke6 {[%clk
0:01:09.5]} 38. Rd1 {[%clk 0:00:06.2]} 38... Nxf2 {[%clk 0:01:05.9]} 39. Rxf2
{[%clk 0:00:05]} 39... Ne4 {[%clk 0:01:06.1]} 40. Re2 {[%clk 0:00:04.6]} 40...
Bc5+ {[%clk 0:01:05.6]} 41. Kg2 {[%clk 0:00:04.5]} 41... Bd6 {[%clk 0:00:57.5]}
42. Rb2 {[%clk 0:00:04.3]} 42... Rc7 {[%clk 0:00:57.5]} 43. a6 {[%clk
0:00:03.9]} 43... b6 {[%clk 0:00:57.3]} 44. Rdb1 {[%clk 0:00:03.4]} 44... Ke5
{[%clk 0:00:55.9]} 45. Rd1 {[%clk 0:00:03.6]} 45... Rg7+ {[%clk 0:00:54]} 46.
Kf1 {[%clk 0:00:03.8]} 46... Bc5 {[%clk 0:00:54]} 47. Rg2 {[%clk 0:00:01.6]}
47... Rg4 {[%clk 0:00:53]} 48. Rxg4 {[%clk 0:00:01.9]} 48... fxg4 {[%clk
0:00:53.9]} 49. Rd7 {[%clk 0:00:02.6]} 49... b5 {[%clk 0:00:53]} 50. Rxh7 {[%clk
0:00:03.2]} 50... b4 {[%clk 0:00:53.2]} 51. Rh5+ {[%clk 0:00:02]} 51... Kd4
{[%clk 0:00:52.2]} 52. Ke2 {[%clk 0:00:02.9]} 52... b3 {[%clk 0:00:52.7]} 53.
Rh8 {[%clk 0:00:02.8]} 53... b2 {[%clk 0:00:52]} 54. Rb8 {[%clk 0:00:03.6]}
54... b1=Q {[%clk 0:00:51]} 55. Rxb1 {[%clk 0:00:03.5]} 55... Nc3+ {[%clk
0:00:51.7]} 56. Kf2 {[%clk 0:00:02.5]} 56... Nxb1 {[%clk 0:00:52.6]} 57. Kg3
{[%clk 0:00:03.4]} 57... Ke5 {[%clk 0:00:51.8]} 58. Kxg4 {[%clk 0:00:04.3]}
58... Kf6 {[%clk 0:00:52.7]} 59. Kf4 {[%clk 0:00:04.4]} 59... Kg7 {[%clk
0:00:53.6]} 60. Ke4 {[%clk 0:00:05.3]} 60... Bb6 {[%clk 0:00:54.3]} 61. Kd5
{[%clk 0:00:06.2]} 61... Na3 {[%clk 0:00:54.7]} 62. Kc6 {[%clk 0:00:06.2]} 62...
Nc4 {[%clk 0:00:54.2]} 63. Kb7 {[%clk 0:00:07.1]} 63... Na5+ {[%clk 0:00:55.1]}
64. Kb8 {[%clk 0:00:06.9]} 64... Kh6 {[%clk 0:00:56]} 65. Ka8 {[%clk 0:00:06.5]}
65... Kh5 {[%clk 0:00:56.9]} 66. Kb8 {[%clk 0:00:06.9]} 66... Kh4 {[%clk
0:00:57.8]} 67. h3 {[%clk 0:00:07.8]} 67... Kxh3 {[%clk 0:00:58.7]} 68. Kc8
{[%clk 0:00:07.8]} 68... Kh2 {[%clk 0:00:59.6]} 69. Kd7 {[%clk 0:00:08.7]} 69...
Kg3 {[%clk 0:01:00.5]} 70. Kc8 {[%clk 0:00:09.3]} 70... Kf4 {[%clk 0:01:01.4]}
71. Kb8 {[%clk 0:00:10]} 71... Ke5 {[%clk 0:01:02.3]} 72. Ka8 {[%clk 0:00:10.9]}
72... Kd5 {[%clk 0:01:03.2]} 73. Kb8 {[%clk 0:00:11.8]} 73... Kc4 {[%clk
0:01:04.1]} 74. Kc8 {[%clk 0:00:12]} 74... Kb5 {[%clk 0:01:05]} 75. Kd7 {[%clk
0:00:12.9]} 75... Kxa6 {[%clk 0:01:05.5]} 76. Kc8 {[%clk 0:00:13.8]} 76... Kb5
{[%clk 0:01:06.4]} 77. Kd7 {[%clk 0:00:14.7]} 77... Bc5 {[%clk 0:01:06.6]} 78.
Kc8 {[%clk 0:00:15.6]} 78... a6 {[%clk 0:01:07.5]} 79. Kd7 {[%clk 0:00:16.5]}
79... Nc4 {[%clk 0:01:08.4]} 80. Kc8 {[%clk 0:00:17.4]} 80... a5 {[%clk
0:01:09.3]} 81. Kd7 {[%clk 0:00:18.3]} 81... a4 {[%clk 0:01:10.2]} 82. Kc8
{[%clk 0:00:19.2]} 82... a3 {[%clk 0:01:11.1]} 83. Kd7 {[%clk 0:00:20.1]} 83...
a2 {[%clk 0:01:12]} 84. Kc8 {[%clk 0:00:21]} 84... a1=Q {[%clk 0:01:12.7]} 85.
Kd7 {[%clk 0:00:21.9]} 85... Qa7+ {[%clk 0:01:12.8]} 86. Kc8 {[%clk 0:00:22.8]}
86... Ne5 {[%clk 0:01:10.8]} 87. Kd8 {[%clk 0:00:23.7]} 87... Qd7# {[%clk
0:01:11.3]} 0-1

[Event "Early-Titled-Tuesday-Blitz-November-28-2023"]
[Site "Chess.com"]
[Date "2023.11.28"]
[Round "5"]
[White "hakanazeri2"]
[Black "ilushka"]
[Result "0-1"]
[WhiteElo "2553"]
[BlackElo "2411"]
[TimeControl "180+1"]
[EndTime "8:58:34 PST"]
[Termination "ilushka won by resignation"]

1. Nf3 {[%clk 0:03:00.9]} 1... d5 {[%clk 0:02:59.9]} 2. d4 {[%clk 0:03:00.6]}
2... g6 {[%clk 0:03:00.4]} 3. c4 {[%clk 0:02:59.4]} 3... c6 {[%clk 0:02:56.6]}
4. g3 {[%clk 0:02:57.3]} 4... Bg7 {[%clk 0:02:56.4]} 5. Bg2 {[%clk 0:02:56]}
5... dxc4 {[%clk 0:02:56.1]} 6. a4 {[%clk 0:02:55.5]} 6... Nf6 {[%clk
0:02:51.7]} 7. Na3 {[%clk 0:02:53.1]} 7... Be6 {[%clk 0:02:44.6]} 8. Ng5 {[%clk
0:02:50.1]} 8... Bd5 {[%clk 0:02:39]} 9. e4 {[%clk 0:02:46.9]} 9... h6 {[%clk
0:02:39.5]} 10. exd5 {[%clk 0:02:46]} 10... hxg5 {[%clk 0:02:39.7]} 11. dxc6
{[%clk 0:02:46.2]} 11... Nxc6 {[%clk 0:02:39.7]} 12. Bxc6+ {[%clk 0:02:40.7]}
12... bxc6 {[%clk 0:02:39.5]} 13. O-O {[%clk 0:02:32]} 13... Qd5 {[%clk
0:02:31.8]} 14. Qe2 {[%clk 0:02:31.1]} 14... O-O-O {[%clk 0:02:01.1]} 15. Qxc4
{[%clk 0:02:25.2]} 15... Qxc4 {[%clk 0:01:58.7]} 16. Nxc4 {[%clk 0:02:21]} 16...
Rxd4 {[%clk 0:01:58.9]} 17. Ne5 {[%clk 0:02:16]} 17... Ne4 {[%clk 0:01:25.5]}
18. Nxf7 {[%clk 0:02:05.6]} 18... Rh5 {[%clk 0:00:51.4]} 19. g4 {[%clk
0:01:53.5]} 19... Rh4 {[%clk 0:00:37.8]} 20. f3 {[%clk 0:01:51.7]} 20... Nd2
{[%clk 0:00:38]} 21. Rf2 {[%clk 0:01:36.2]} 21... Nb3 {[%clk 0:00:38.1]} 22.
Bxg5 {[%clk 0:01:27.2]} 22... Rhxg4+ {[%clk 0:00:17.9]} 23. fxg4 {[%clk
0:01:26]} 23... Rxg4+ {[%clk 0:00:18.8]} 24. Rg2 {[%clk 0:01:22.4]} 24... Bd4+
{[%clk 0:00:15.7]} 25. Kh1 {[%clk 0:01:19]} 25... Rxg2 {[%clk 0:00:14.3]} 26.
Kxg2 {[%clk 0:01:14.2]} 26... Nxa1 {[%clk 0:00:15.2]} 27. b4 {[%clk 0:01:09.6]}
27... Nc2 {[%clk 0:00:14.4]} 28. Bxe7 {[%clk 0:01:09]} 28... Kd7 {[%clk
0:00:13.8]} 29. Bc5 {[%clk 0:01:07.3]} 29... Bxc5 {[%clk 0:00:12.7]} 30. bxc5
{[%clk 0:01:08.2]} 30... Ke6 {[%clk 0:00:11.9]} 31. Nd6 {[%clk 0:01:03.4]} 31...
Kd5 {[%clk 0:00:10.8]} 32. Nb7 {[%clk 0:01:03.8]} 32... Nd4 {[%clk 0:00:09.3]}
33. Kg3 {[%clk 0:01:04]} 33... Ne6 {[%clk 0:00:09.3]} 34. Kg4 {[%clk 0:01:04.1]}
34... Nxc5 {[%clk 0:00:09.9]} 35. Nxc5 {[%clk 0:00:56.9]} 35... Kxc5 {[%clk
0:00:10.8]} 36. Kg5 {[%clk 0:00:57.8]} 36... Kb4 {[%clk 0:00:10.4]} 37. Kxg6
{[%clk 0:00:58.7]} 37... c5 {[%clk 0:00:10.7]} 38. h4 {[%clk 0:00:59.6]} 38...
c4 {[%clk 0:00:11.2]} 39. h5 {[%clk 0:01:00.5]} 39... c3 {[%clk 0:00:11.9]} 40.
h6 {[%clk 0:01:01.3]} 40... c2 {[%clk 0:00:12.5]} 41. h7 {[%clk 0:01:02.1]}
41... c1=Q {[%clk 0:00:13.2]} 42. h8=Q {[%clk 0:01:02.9]} 42... Qc2+ {[%clk
0:00:11.1]} 43. Kf7 {[%clk 0:01:02.6]} 43... Qc4+ {[%clk 0:00:08.8]} 44. Ke7
{[%clk 0:01:00.2]} 44... Qc7+ {[%clk 0:00:07.8]} 45. Ke6 {[%clk 0:00:59.8]}
45... Qc6+ {[%clk 0:00:08.3]} 46. Ke7 {[%clk 0:00:57.8]} 46... Qc5+ {[%clk
0:00:05.5]} 47. Kd7 {[%clk 0:00:57.1]} 47... Kxa4 {[%clk 0:00:04.7]} 48. Qa1+
{[%clk 0:00:55.7]} 48... Kb5 {[%clk 0:00:04.7]} 49. Qf1+ {[%clk 0:00:54.1]}
49... Ka5 {[%clk 0:00:05]} 50. Qe1+ {[%clk 0:00:53]} 50... Kb6 {[%clk
0:00:04.5]} 51. Qe6+ {[%clk 0:00:52.1]} 51... Kb7 {[%clk 0:00:03.7]} 52. Qa2
{[%clk 0:00:53]} 52... Qd4+ {[%clk 0:00:02.8]} 53. Ke6 {[%clk 0:00:51.4]} 53...
Kb6 {[%clk 0:00:02]} 54. Qb3+ {[%clk 0:00:51.4]} 54... Kc7 {[%clk 0:00:02.6]}
55. Qc2+ {[%clk 0:00:51.6]} 55... Kb6 {[%clk 0:00:02.9]} 56. Qb3+ {[%clk
0:00:51.9]} 56... Kc6 {[%clk 0:00:03.6]} 57. Qf3+ {[%clk 0:00:50.7]} 57... Kc5
{[%clk 0:00:03.6]} 58. Qa3+ {[%clk 0:00:50.9]} 58... Kb5 {[%clk 0:00:02.4]} 59.
Qb3+ {[%clk 0:00:50.3]} 59... Ka6 {[%clk 0:00:02.8]} 60. Qa2+ {[%clk 0:00:49.4]}
60... Kb7 {[%clk 0:00:03.5]} 61. Qg2+ {[%clk 0:00:50]} 61... Kb8 {[%clk
0:00:03.1]} 62. Qg8+ {[%clk 0:00:49.9]} 62... Kc7 {[%clk 0:00:03.7]} 63. Qh7+
{[%clk 0:00:49.6]} 63... Kb6 {[%clk 0:00:03.6]} 64. Qb1+ {[%clk 0:00:50.2]}
64... Kc6 {[%clk 0:00:03.9]} 65. Qc2+ {[%clk 0:00:51.1]} 65... Kb7 {[%clk
0:00:04.4]} 66. Qb3+ {[%clk 0:00:52]} 66... Qb6+ {[%clk 0:00:04.5]} 67. Qxb6+
{[%clk 0:00:49.2]} 67... Kxb6 {[%clk 0:00:05.4]} 68. Kd5 {[%clk 0:00:49.7]}
68... Kb5 {[%clk 0:00:06]} 69. Kd4 {[%clk 0:00:50.6]} 69... Kb4 {[%clk
0:00:06.5]} 70. Kd3 {[%clk 0:00:51.5]} 70... Kb3 {[%clk 0:00:07]} 0-1

[Event "Early-Titled-Tuesday-Blitz-November-28-2023"]
[Site "Chess.com"]
[Date "2023.11.28"]
[Round "5"]
[White "Mistango"]
[Black "Goryachkina"]
[Result "0-1"]
[WhiteElo "2469"]
[BlackElo "2622"]
[TimeControl "180+1"]
[EndTime "8:58:41 PST"]
[Termination "Goryachkina won on time"]

1. e4 {[%clk 0:03:00.9]} 1... c5 {[%clk 0:02:58.1]} 2. Nf3 {[%clk 0:03:01.5]}
2... e6 {[%clk 0:02:57.9]} 3. d4 {[%clk 0:03:02.1]} 3... cxd4 {[%clk 0:02:58.1]}
4. Nxd4 {[%clk 0:03:03]} 4... Nc6 {[%clk 0:02:57.1]} 5. Nc3 {[%clk 0:03:03.1]}
5... Bc5 {[%clk 0:02:56.6]} 6. Be3 {[%clk 0:02:34.6]} 6... Qb6 {[%clk
0:02:51.7]} 7. Na4 {[%clk 0:02:34.4]} 7... Qa5+ {[%clk 0:02:51.8]} 8. c3 {[%clk
0:02:35]} 8... Bxd4 {[%clk 0:02:33.3]} 9. Bxd4 {[%clk 0:02:35.9]} 9... Nxd4
{[%clk 0:02:30.2]} 10. Qxd4 {[%clk 0:02:36.8]} 10... e5 {[%clk 0:02:21.6]} 11.
Qb4 {[%clk 0:02:22.7]} 11... Qxb4 {[%clk 0:02:21.3]} 12. cxb4 {[%clk 0:02:23.6]}
12... Nf6 {[%clk 0:02:21.2]} 13. Nc3 {[%clk 0:02:19.8]} 13... d6 {[%clk
0:02:19.2]} 14. Bc4 {[%clk 0:02:19.6]} 14... Be6 {[%clk 0:02:15.9]} 15. Bxe6
{[%clk 0:02:11.4]} 15... fxe6 {[%clk 0:02:15.9]} 16. Rd1 {[%clk 0:02:11.8]}
16... Ke7 {[%clk 0:02:15.4]} 17. Ke2 {[%clk 0:02:08.8]} 17... Rac8 {[%clk
0:02:08.1]} 18. Rd2 {[%clk 0:02:01.6]} 18... Rc4 {[%clk 0:02:03.9]} 19. f3
{[%clk 0:01:44.8]} 19... Rxb4 {[%clk 0:02:03.8]} 20. Rhd1 {[%clk 0:01:45.2]}
20... Rd8 {[%clk 0:02:03.4]} 21. b3 {[%clk 0:01:40.1]} 21... Rc8 {[%clk
0:01:48.6]} 22. Na4 {[%clk 0:01:36.8]} 22... Rc6 {[%clk 0:01:48.1]} 23. Nb2
{[%clk 0:01:33.5]} 23... Rbb6 {[%clk 0:01:15]} 24. Nc4 {[%clk 0:01:20.9]} 24...
Ra6 {[%clk 0:01:15.2]} 25. a4 {[%clk 0:01:21.2]} 25... Nd7 {[%clk 0:01:06]} 26.
Rb2 {[%clk 0:01:09.3]} 26... Nc5 {[%clk 0:01:02]} 27. Ne3 {[%clk 0:01:07]} 27...
Rab6 {[%clk 0:00:57.6]} 28. Rdb1 {[%clk 0:01:02.1]} 28... a5 {[%clk 0:00:57.1]}
29. Nc4 {[%clk 0:00:58.7]} 29... Ra6 {[%clk 0:00:57.2]} 30. g3 {[%clk
0:00:50.6]} 30... Rc7 {[%clk 0:00:46.5]} 31. Na3 {[%clk 0:00:47.1]} 31... d5
{[%clk 0:00:37.7]} 32. Nb5 {[%clk 0:00:45.4]} 32... Rd7 {[%clk 0:00:38]} 33. Rc2
{[%clk 0:00:20.4]} 33... b6 {[%clk 0:00:38.1]} 34. exd5 {[%clk 0:00:19.4]} 34...
exd5 {[%clk 0:00:38.1]} 35. f4 {[%clk 0:00:12.1]} 35... exf4 {[%clk 0:00:23.9]}
36. gxf4 {[%clk 0:00:11.8]} 36... Ra8 {[%clk 0:00:23.1]} 37. Nd4 {[%clk
0:00:10.2]} 37... Re8 {[%clk 0:00:21.7]} 38. Kf3 {[%clk 0:00:09.4]} 38... Kf8
{[%clk 0:00:21]} 39. b4 {[%clk 0:00:08.1]} 39... axb4 {[%clk 0:00:18.4]} 40.
Rxb4 {[%clk 0:00:09]} 40... Nd3 {[%clk 0:00:18.7]} 41. Rxb6 {[%clk 0:00:03.4]}
41... Ne1+ {[%clk 0:00:19]} 42. Kf2 {[%clk 0:00:03.5]} 42... Nxc2 {[%clk
0:00:18.8]} 43. Nxc2 {[%clk 0:00:04.4]} 43... Rc7 {[%clk 0:00:19]} 44. Nd4
{[%clk 0:00:03.8]} 44... Rc4 {[%clk 0:00:19.3]} 45. Ne6+ {[%clk 0:00:02.1]}
45... Rxe6 {[%clk 0:00:19.4]} 46. Rxe6 {[%clk 0:00:01.8]} 46... Rxf4+ {[%clk
0:00:19.8]} 47. Ke3 {[%clk 0:00:02.3]} 47... Rxa4 {[%clk 0:00:20.5]} 48. Rd6
{[%clk 0:00:02.8]} 48... Re4+ {[%clk 0:00:19]} 49. Kf3 {[%clk 0:00:03]} 49...
Re5 {[%clk 0:00:19.4]} 50. Kf4 {[%clk 0:00:02.9]} 50... Rh5 {[%clk 0:00:19.7]}
51. Kg3 {[%clk 0:00:02.7]} 51... Ke7 {[%clk 0:00:18.9]} 52. Ra6 {[%clk
0:00:03.3]} 52... g6 {[%clk 0:00:17.8]} 53. Rb6 {[%clk 0:00:01.8]} 53... d4
{[%clk 0:00:17.8]} 0-1